bitfinex-derivatives/quotes_BTCF0:USTF0_20240925
["timestamp","ask_amount","ask_price","bid_price","bid_amount"]
[1727285397029,0.081105,63210.0,63208.0,0.025]
[1727285397225,0.079106,63209.0,63208.0,0.025]
[1727285397430,1.094506,63209.0,63193.0,0.12491542]
[1727285397630,0.18,63194.0,63193.0,0.0462]
[1727285397930,0.18,63194.0,63191.0,0.079129]
[1727285397931,0.18,63194.0,63187.0,0.4087]
[1727285398131,0.18,63190.0,63188.0,0.079132]
[1727285398327,0.18,63190.0,63187.0,0.3608]
[1727285398328,0.27858101,63190.0,63187.0,0.3608]
[1727285398525,0.01945101,63189.0,63188.0,0.079131]
[1727285398727,0.00545101,63192.0,63188.0,0.079131]
[1727285399027,0.079129,63191.0,63188.0,0.079131]
[1727285399428,0.18,63192.0,63187.0,0.3608]
[1727285399628,1.5,63196.0,63187.0,0.3608]
[1727285399834,0.259132,63188.0,63187.0,0.3608]
[1727285400336,0.259132,63188.0,63180.0,0.079142]
[1727285400337,0.18,63188.0,63180.0,0.079142]
[1727285400540,0.18,63187.0,63180.0,0.079142]
[1727285400934,0.3618,63190.0,63186.0,0.18]
[1727285400935,0.3608,63190.0,63186.0,0.18]
[1727285401142,0.3608,63190.0,63182.0,0.07914]
[1727285401328,0.3608,63190.0,63181.0,0.3608]
[1727285401329,0.3608,63190.0,63185.0,0.18]
[1727285401637,0.002,63188.0,63186.0,0.079134]
[1727285402234,0.002,63188.0,63187.0,0.3608]
[1727285403434,0.001,63188.0,63187.0,0.3608]
[1727285403642,0.002,63190.0,63188.0,0.079132]
[1727285404036,0.002,63190.0,63187.0,0.3608]
[1727285404447,0.001,63190.0,63187.0,0.3608]
[1727285404744,0.002,63188.0,63187.0,0.3608]
[1727285405334,0.001,63188.0,63187.0,0.3608]
[1727285405933,0.001,63188.0,63187.0,0.439934]
[1727285406138,0.002,63190.0,63187.0,0.3608]
[1727285407045,0.0037,63198.0,63197.0,0.079121]
[1727285407347,0.079109,63207.0,63200.0,0.079117]
[1727285408531,0.18,63208.0,63200.0,0.079117]
[1727285408731,0.3608,63211.0,63202.0,0.3608]
[1727285409047,0.18,63212.0,63197.0,0.0958]
[1727285409338,0.18,63212.0,63201.0,0.52705316]
[1727285409536,0.18,63207.0,63201.0,0.52705316]
[1727285409739,0.001,63203.0,63201.0,0.3608]
[1727285409939,0.002,63203.0,63201.0,0.3608]
[1727285410346,0.001,63203.0,63201.0,0.3608]
[1727285410539,0.001,63203.0,63201.0,0.439916]
[1727285410740,0.001,63207.0,63202.0,0.079114]
[1727285410940,0.001,63203.0,63202.0,0.079114]
[1727285411341,0.1049426,63211.0,63202.0,0.079114]
[1727285411645,0.001,63203.0,63202.0,0.079114]
[1727285412050,0.001,63203.0,63197.0,0.0467]
[1727285412248,0.18,63202.0,63197.0,0.0467]
[1727285412842,0.001,63203.0,63197.0,0.0467]
[1727285413044,0.001,63203.0,63197.0,0.2267]
[1727285413254,0.1067476,63211.0,63202.0,0.079114]
[1727285413446,0.1030476,63211.0,63202.0,0.079114]
[1727285413646,0.080105,63211.0,63204.0,0.079112]
[1727285413848,0.080105,63211.0,63205.0,0.3608]
[1727285414160,0.41186,63215.0,63205.0,0.3608]
[1727285414161,0.4099,63215.0,63205.0,0.3608]
[1727285414342,0.3608,63215.0,63211.0,0.079103]
[1727285414654,0.079096,63217.0,63205.0,0.54168]
[1727285414851,0.079096,63217.0,63211.0,0.079103]
[1727285415159,0.06236325,63223.0,63215.0,0.18]
[1727285415459,0.259095,63218.0,63213.0,0.3608]
[1727285416342,0.18,63218.0,63213.0,0.3608]
[1727285416660,0.01,63215.0,63213.0,0.4399]
[1727285416849,0.01,63215.0,63214.0,0.0791]
[1727285417055,0.004,63215.0,63214.0,0.0791]
[1727285417255,0.3748,63218.0,63215.0,0.079098]
[1727285417455,0.014,63218.0,63215.0,0.079098]
[1727285417656,0.014,63218.0,63213.0,0.3608]
[1727285417958,0.014,63218.0,63217.0,0.079096]
[1727285418149,0.014,63218.0,63213.0,0.3608]
[1727285418150,0.184,63218.0,63213.0,0.3608]
[1727285418353,0.2591,63214.0,63213.0,0.3608]
[1727285418858,0.184,63218.0,63213.0,0.3608]
[1727285419358,0.004,63218.0,63214.0,0.18]
[1727285419857,0.004,63218.0,63217.0,0.079096]
[1727285420055,0.4063,63223.0,63218.0,0.079094]
[1727285421158,0.4063,63223.0,63209.0,0.00088]
[1727285421159,0.079105,63210.0,63209.0,0.00088]
[1727285421456,0.079105,63210.0,63204.0,0.002373]
[1727285421658,1.579105,63210.0,63204.0,0.002373]
[1727285422058,0.079105,63210.0,63204.0,0.002373]
[1727285423162,0.083105,63210.0,63204.0,0.002373]
[1727285424055,0.079105,63210.0,63204.0,0.002373]
[1727285424750,0.0508,63212.0,63206.0,0.07911]
[1727285425361,0.0508,63212.0,63208.0,0.079107]
[1727285425755,0.11316325,63212.0,63208.0,0.079107]
[1727285426154,0.0508,63212.0,63208.0,0.079107]
[1727285426361,0.11416325,63212.0,63208.0,0.079107]
[1727285426963,0.11316325,63212.0,63208.0,0.079107]
[1727285427265,0.0538,63212.0,63208.0,0.079107]
[1727285427458,0.003,63212.0,63209.0,0.079105]
[1727285427661,0.003,63212.0,63210.0,0.079104]
[1727285427863,0.003,63212.0,63211.0,0.079104]
[1727285429066,0.004,63212.0,63211.0,0.079104]
[1727285430069,0.006,63212.0,63211.0,0.079104]
[1727285430270,0.008,63212.0,63211.0,0.079104]
[1727285430964,0.01,63212.0,63211.0,0.079104]
[1727285431671,0.01,63212.0,63211.0,1.153704]
[1727285431863,0.01,63212.0,63211.0,0.25087297]
[1727285432168,0.01,63212.0,63211.0,1.32547297]
[1727285432561,0.01,63212.0,63211.0,0.82427297]
[1727285432758,0.01,63212.0,63211.0,1.42427297]
[1727285432968,0.01,63212.0,63211.0,0.82427297]
[1727285433477,0.01,63212.0,63211.0,0.34967297]
[1727285434561,0.01,63212.0,63211.0,0.30067297]
[1727285434768,0.01,63212.0,63211.0,0.25087297]
[1727285435473,0.01,63212.0,63211.0,0.43087297]
[1727285435671,0.01,63212.0,63211.0,1.50547297]
[1727285436467,0.01,63212.0,63211.0,1.58418839]
[1727285436667,0.01,63212.0,63211.0,1.67972092]
[1727285437776,0.01,63212.0,63211.0,1.6010055]
[1727285438472,0.0037,63220.0,63219.0,0.158188]
[1727285438678,0.0037,63237.0,63220.0,0.079092]
[1727285438869,0.0485,63238.0,63237.0,0.079071]
[1727285439177,0.0476,63240.0,63237.0,0.079071]
[1727285440065,0.38311178,63244.0,63233.0,0.3608]
[1727285440367,0.3608,63244.0,63240.0,0.079066]
[1727285440679,0.3608,63244.0,63235.0,0.18]
[1727285440680,0.13999828,63241.0,63235.0,0.17994917]
[1727285440871,0.12455836,63236.0,63233.0,0.3608]
[1727285441078,0.12995651,63235.0,63234.0,0.079075]
[1727285441262,0.12995651,63235.0,63234.0,0.26195623]
[1727285441461,0.25451487,63235.0,63234.0,0.26195623]
[1727285442272,0.12995651,63235.0,63234.0,0.26195623]
[1727285442474,0.15014563,63235.0,63234.0,0.26195623]
[1727285442662,0.16414563,63235.0,63234.0,0.26295623]
[1727285442860,0.03963708,63235.0,63234.0,0.13636555]
[1727285443066,0.14252481,63235.0,63234.0,0.21544055]
[1727285443875,0.15652481,63235.0,63234.0,0.21544055]
[1727285444479,0.15652481,63235.0,63234.0,0.13636555]
[1727285445176,0.15652481,63235.0,63234.0,0.21544055]
[1727285445381,0.15243812,63235.0,63234.0,0.21544055]
[1727285445576,0.28096293,63235.0,63234.0,0.21544055]
[1727285445976,0.15652481,63235.0,63234.0,0.21544055]
[1727285446484,0.15242447,63235.0,63234.0,0.21544055]
[1727285446674,0.15652481,63235.0,63234.0,0.21544055]
[1727285446878,0.28094928,63235.0,63234.0,0.21544055]
[1727285447277,0.15652481,63235.0,63234.0,0.21544055]
[1727285447584,0.15429742,63235.0,63234.0,0.21544055]
[1727285447781,0.028,63235.0,63234.0,0.21544055]
[1727285450802,0.02,63235.0,63234.0,0.21544055]
[1727285451304,0.015,63235.0,63234.0,0.21444055]
[1727285452005,0.008,63235.0,63234.0,0.21444055]
[1727285452615,0.002,63235.0,63234.0,0.21444055]
[1727285452795,0.003,63235.0,63234.0,0.21444055]
[1727285453601,0.003,63235.0,63234.0,0.21644055]
[1727285454401,0.002,63235.0,63234.0,0.21444055]
[1727285454605,0.002,63235.0,63234.0,0.21644055]
[1727285455590,0.079064,63243.0,63238.0,0.07907]
[1727285456100,0.079064,63243.0,63239.0,0.079068]
[1727285456801,0.079065,63242.0,63239.0,0.079068]
[1727285457004,0.002,63243.0,63235.0,0.079073]
[1727285457200,0.18,63236.0,63233.0,0.3608]
[1727285457407,0.079075,63234.0,63233.0,0.3608]
[1727285458403,0.079081,63229.0,63227.0,0.079083]
[1727285458707,0.18,63232.0,63224.0,0.00237236]
[1727285459009,0.079083,63228.0,63225.0,0.079086]
[1727285460218,0.082083,63228.0,63225.0,0.079086]
[1727285460397,0.003,63228.0,63224.0,0.36317236]
[1727285460597,0.003,63228.0,63227.0,0.079084]
[1727285461405,0.005,63228.0,63224.0,0.36317236]
[1727285461809,0.0485,63227.0,63224.0,0.36317236]
[1727285462018,0.079086,63225.0,63224.0,0.36317236]
[1727285462312,0.0485,63227.0,63224.0,0.36317236]
[1727285462504,0.0485,63227.0,63224.0,0.36417236]
[1727285463710,0.0485,63227.0,63226.0,0.079085]
[1727285464195,0.0525,63227.0,63226.0,0.079085]
[1727285464595,0.004,63227.0,63226.0,0.079085]
[1727285465403,0.079086,63225.0,63224.0,0.36317236]
[1727285466708,0.086086,63225.0,63224.0,0.36317236]
[1727285467915,0.092086,63225.0,63224.0,0.44225936]
[1727285468298,0.093086,63225.0,63224.0,0.44225936]
[1727285468503,0.092086,63225.0,63224.0,0.44225936]
[1727285468802,0.084086,63225.0,63224.0,0.44225936]
[1727285469110,0.013,63225.0,63224.0,0.44225936]
[1727285469411,0.013,63225.0,63224.0,0.439887]
[1727285469602,0.013,63225.0,63224.0,0.3608]
[1727285469913,0.092086,63225.0,63224.0,0.3608]
[1727285470915,0.079094,63219.0,63218.0,0.06293725]
[1727285471215,0.079096,63218.0,63216.0,0.50283425]
[1727285471411,0.079093,63220.0,63217.0,0.079096]
[1727285471713,0.079093,63220.0,63216.0,0.3616]
[1727285472012,0.002,63219.0,63216.0,0.3608]
[1727285472320,0.002,63219.0,63216.0,0.42373725]
[1727285472500,0.079093,63220.0,63216.0,0.42373725]
[1727285472705,0.080093,63220.0,63216.0,0.42373725]
[1727285473207,0.080093,63220.0,63218.0,0.080095]
[1727285473416,0.080093,63220.0,63218.0,0.001]
[1727285473912,0.081093,63220.0,63216.0,0.50363425]
[1727285474110,0.079095,63218.0,63216.0,0.42373725]
[1727285474307,0.079095,63218.0,63216.0,0.3608]
[1727285474708,0.003,63219.0,63216.0,0.3608]
[1727285474912,0.007,63220.0,63216.0,0.439896]
[1727285475308,0.002,63220.0,63218.0,0.079095]
[1727285475904,0.002,63220.0,63219.0,0.079094]
[1727285476104,0.005,63220.0,63219.0,0.079094]
[1727285476311,0.003,63220.0,63219.0,0.079094]
[1727285476511,0.003,63220.0,63219.0,0.25988837]
[1727285477308,0.006,63220.0,63219.0,0.25988837]
[1727285477709,0.003,63220.0,63219.0,0.25988837]
[1727285478019,0.008,63220.0,63219.0,0.25988837]
[1727285478410,0.009,63220.0,63219.0,0.25988837]
[1727285481418,0.009,63220.0,63219.0,0.079094]
[1727285482510,0.009,63220.0,63219.0,0.158188]
[1727285482710,0.009,63220.0,63219.0,0.80023494]
[1727285482909,0.009,63220.0,63219.0,0.40461914]
[1727285483118,0.009,63220.0,63219.0,0.42225417]
[1727285483317,0.009,63220.0,63219.0,0.36549616]
[1727285483716,0.009,63220.0,63219.0,0.34316017]
[1727285483915,0.009,63220.0,63219.0,0.24662094]
[1727285486724,0.009,63220.0,63219.0,0.32553798]
[1727285487031,0.009,63220.0,63219.0,0.34293219]
[1727285487819,0.009,63220.0,63219.0,0.42202619]
[1727285488328,0.009,63220.0,63219.0,0.34293219]
[1727285489128,0.009,63220.0,63219.0,1.49654619]
[1727285489327,0.009,63220.0,63219.0,1.51213723]
[1727285489530,0.009,63220.0,63219.0,1.59123123]
[1727285489731,0.009,63220.0,63219.0,1.41745219]
[1727285491631,0.009,63220.0,63219.0,0.34289681]
[1727285491829,0.009,63220.0,63219.0,0.42199081]
[1727285492130,0.009,63220.0,63219.0,0.43771544]
[1727285492522,0.009,63220.0,63219.0,0.34289681]
[1727285492723,0.009,63220.0,63219.0,0.81741681]
[1727285493931,0.009,63220.0,63219.0,0.34289681]
[1727285495430,0.009,63220.0,63219.0,0.42199081]
[1727285495618,0.009,63220.0,63219.0,1.41741681]
[1727285496231,0.009,63220.0,63219.0,0.81738191]
[1727285496531,0.189,63220.0,63219.0,0.81738191]
[1727285496732,0.079116,63201.0,63200.0,0.3608]
[1727285496920,0.079116,63201.0,63199.0,0.06322078]
[1727285496921,0.65468,63201.0,63199.0,0.06322078]
[1727285497121,0.65468,63201.0,63194.0,0.3608]
[1727285497122,0.079124,63195.0,63194.0,0.3608]
[1727285497325,0.18,63195.0,63188.0,0.06322078]
[1727285497533,0.079129,63191.0,63184.0,0.06322078]
[1727285497719,0.079129,63191.0,63183.0,0.06322078]
[1727285498220,0.18,63195.0,63183.0,0.24322078]
[1727285498425,0.259124,63195.0,63183.0,0.18]
[1727285498626,0.3608,63197.0,63183.0,0.18]
[1727285498828,0.38371691,63197.0,63183.0,0.18]
[1727285499233,0.001,63191.0,63187.0,0.3648]
[1727285499826,0.38471691,63197.0,63187.0,0.3608]
[1727285500034,0.18,63195.0,63187.0,0.3648]
[1727285500233,0.079126,63193.0,63187.0,0.3648]
[1727285500431,0.001,63191.0,63187.0,0.3648]
[1727285501428,0.002,63191.0,63187.0,0.3608]
[1727285502340,0.001,63191.0,63187.0,0.3608]
[1727285502533,0.080129,63191.0,63187.0,0.3608]
[1727285503045,0.081129,63191.0,63187.0,0.3608]
[1727285503233,0.002,63191.0,63187.0,0.3608]
[1727285504238,0.081129,63191.0,63187.0,0.3608]
[1727285504832,0.079132,63188.0,63187.0,0.3608]
[1727285505234,0.07914,63182.0,63181.0,0.3608]
[1727285505440,0.25914,63182.0,63181.0,0.3608]
[1727285505829,0.07914,63182.0,63181.0,0.3608]
[1727285506043,0.25914,63182.0,63181.0,0.3608]
[1727285506547,0.18,63182.0,63181.0,0.3608]
[1727285506734,0.18,63182.0,63176.0,0.079147]
[1727285507038,0.0487,63181.0,63176.0,0.079147]
[1727285508433,0.0497,63181.0,63176.0,0.079147]
[1727285509043,0.07375268,63181.0,63176.0,0.079147]
[1727285509535,0.07375268,63181.0,63174.0,0.18]
[1727285509536,0.0507,63181.0,63177.0,0.079146]
[1727285509738,0.002,63181.0,63178.0,0.18]
[1727285509935,0.002,63181.0,63177.0,0.079146]
[1727285510245,0.002,63181.0,63179.0,0.18]
[1727285510636,0.002,63181.0,63175.0,0.5408]
[1727285510836,0.081142,63181.0,63175.0,0.5408]
[1727285511531,0.080142,63181.0,63175.0,0.5408]
[1727285511737,0.079157,63169.0,63163.0,0.3608]
[1727285511931,0.5408,63176.0,63163.0,0.3608]
[1727285511932,0.259161,63165.0,63163.0,0.3608]
[1727285512333,0.0521,63168.0,63163.0,0.3608]
[1727285512739,0.079161,63166.0,63163.0,0.3608]
[1727285512953,0.0521,63168.0,63163.0,0.3608]
[1727285513244,0.07530623,63168.0,63163.0,0.3608]
[1727285513644,0.07530623,63168.0,63163.0,0.619964]
[1727285513842,0.001,63165.0,63163.0,0.619964]
[1727285514536,0.001,63165.0,63163.0,0.259164]
[1727285514937,0.002,63165.0,63163.0,0.079164]
[1727285515237,0.001,63165.0,63163.0,0.079164]
[1727285515438,0.001,63165.0,63159.0,0.18]
[1727285515648,0.0037,63175.0,63174.0,0.07915]
[1727285515941,0.0476,63180.0,63178.0,0.079145]
[1727285516148,0.0476,63180.0,63179.0,0.18]
[1727285516946,0.0476,63180.0,63175.0,0.259148]
[1727285517341,0.0476,63180.0,63176.0,0.079147]
[1727285518135,0.0486,63180.0,63177.0,0.079146]
[1727285518337,0.0486,63180.0,63175.0,0.001]
[1727285518338,0.0507,63179.0,63175.0,0.001]
[1727285518545,0.3608,63176.0,63175.0,0.001]
[1727285518743,0.3598,63176.0,63174.0,0.18]
[1727285518950,0.3598,63176.0,63175.0,0.079149]
[1727285519135,0.0496,63180.0,63179.0,0.079144]
[1727285519338,0.0476,63180.0,63179.0,0.079144]
[1727285519539,0.0496,63180.0,63179.0,0.079144]
[1727285520147,0.0496,63180.0,63179.0,0.081144]
[1727285520345,0.002,63180.0,63179.0,0.261144]
[1727285521051,0.001,63180.0,63179.0,0.261144]
[1727285521541,0.002,63180.0,63179.0,0.261144]
[1727285521946,0.002,63180.0,63179.0,0.340288]
[1727285522456,0.1483,63197.0,63190.0,0.07913]
[1727285522652,0.1483,63197.0,63189.0,0.18]
[1727285522949,0.1483,63197.0,63189.0,0.25913]
[1727285523245,0.18,63195.0,63189.0,0.07913]
[1727285523448,0.3608,63190.0,63189.0,0.07913]
[1727285524651,0.3628,63190.0,63189.0,0.07913]
[1727285525952,1.01756,63190.0,63184.0,0.079136]
[1727285526159,0.62193,63190.0,63189.0,0.001]
[1727285526640,0.44193,63190.0,63189.0,0.001]
[1727285527052,0.46455301,63190.0,63189.0,0.001]
[1727285527253,0.46255301,63190.0,63189.0,0.001]
[1727285527650,0.3608,63190.0,63189.0,0.001]
[1727285527846,0.3628,63190.0,63189.0,0.080131]
[1727285528051,0.3628,63190.0,63189.0,0.130131]
[1727285528351,0.3638,63190.0,63189.0,0.129131]
[1727285528552,0.3638,63190.0,63189.0,0.079131]
[1727285529357,0.3628,63190.0,63189.0,0.080131]
[1727285530044,0.3628,63190.0,63189.0,0.001]
[1727285530245,0.44193,63190.0,63189.0,0.001]
[1727285530948,0.51985455,63190.0,63189.0,0.001]
[1727285531147,0.44193,63190.0,63189.0,0.001]
[1727285531751,0.91669,63190.0,63189.0,0.001]
[1727285531953,0.93971646,63190.0,63189.0,0.001]
[1727285532147,0.96537464,63190.0,63189.0,0.001]
[1727285533361,0.41148464,63190.0,63189.0,0.080131]
[1727285533565,0.38582646,63190.0,63189.0,0.080131]
[1727285533746,0.46367862,63190.0,63189.0,0.080131]
[1727285536161,0.46367862,63190.0,63189.0,0.001]
[1727285537049,0.4114843,63190.0,63189.0,0.001]
[1727285537558,0.41148452,63190.0,63189.0,0.001]
[1727285538054,0.38582646,63190.0,63189.0,0.001]
[1727285538559,0.38582646,63190.0,63189.0,0.080131]
[1727285539559,0.38582646,63190.0,63189.0,0.260131]
[1727285540360,0.38582646,63190.0,63189.0,0.080131]
[1727285542649,0.3628,63190.0,63189.0,0.080131]
[1727285543355,0.3628,63190.0,63189.0,0.260131]
[1727285543657,0.002,63190.0,63189.0,0.260131]
[1727285543965,0.4105,63205.0,63191.0,0.079129]
[1727285544156,0.4105,63205.0,63202.0,0.079114]
[1727285544358,0.4105,63205.0,63200.0,0.18]
[1727285544663,0.4105,63205.0,63204.0,0.079112]
[1727285544868,0.3608,63205.0,63204.0,0.259112]
[1727285545252,0.3728,63205.0,63204.0,0.306452]
[1727285545763,0.3728,63205.0,63204.0,0.259112]
[1727285546169,0.3858,63205.0,63204.0,0.30645048]
[1727285546466,0.3858,63205.0,63204.0,0.259112]
[1727285547267,0.3818,63205.0,63204.0,0.259112]
[1727285548267,0.3688,63205.0,63204.0,0.259112]
[1727285548464,0.3798,63205.0,63204.0,0.259112]
[1727285552670,0.019,63205.0,63204.0,0.259112]
[1727285553167,0.25042638,63205.0,63204.0,0.18]
[1727285553366,0.21647393,63205.0,63204.0,0.50562458]
[1727285553671,0.15560303,63211.0,63210.0,0.079105]
[1727285553865,0.17208678,63218.0,63217.0,0.079096]
[1727285554169,0.17208678,63218.0,63217.0,0.18]
[1727285554170,0.06587464,63218.0,63217.0,0.18]
[1727285554970,0.06587464,63218.0,63217.0,0.259096]
[1727285555170,0.09387464,63218.0,63217.0,0.259096]
[1727285556165,0.028,63218.0,63217.0,0.259096]
[1727285556965,0.028,63218.0,63217.0,0.89929796]
[1727285557170,0.13676096,63218.0,63217.0,1.57839396]
[1727285557378,0.10876245,63220.0,63217.0,1.49929796]
[1727285557673,0.12434249,63225.0,63224.0,0.079087]
[1727285558274,0.12434249,63226.0,63225.0,0.079086]
[1727285558466,0.12434249,63227.0,63226.0,0.079085]
[1727285558661,0.12434249,63227.0,63226.0,0.259085]
[1727285559066,0.12434249,63228.0,63227.0,0.079084]
[1727285559273,0.3608,63233.0,63226.0,0.18]
[1727285559274,0.12434249,63230.0,63228.0,0.079082]
[1727285559770,0.3608,63233.0,63228.0,0.079082]
[1727285559771,0.12434249,63229.0,63228.0,0.079082]
[1727285559971,0.12434249,63230.0,63228.0,0.079082]
[1727285560359,0.12434249,63230.0,63224.0,0.079086]
[1727285560575,0.12434249,63230.0,63227.0,0.079083]
[1727285560770,0.20342349,63229.0,63223.0,0.18]
[1727285560979,0.3608,63227.0,63223.0,0.18]
[1727285561188,0.3608,63227.0,63223.0,0.259088]
[1727285561477,0.3608,63227.0,63225.0,0.079086]
[1727285562062,0.3608,63227.0,63214.0,0.0381]
[1727285562265,0.3608,63219.0,63211.0,0.18]
[1727285562473,0.3608,63219.0,63218.0,0.079095]
[1727285564071,0.18,63225.0,63221.0,0.079091]
[1727285565371,0.18,63225.0,63221.0,0.080091]
[1727285565878,0.18,63225.0,63221.0,0.001]
[1727285566379,0.3608,63225.0,63221.0,0.002]
[1727285566574,0.07909,63222.0,63221.0,0.002]
[1727285566978,0.18,63223.0,63221.0,0.001]
[1727285567367,0.18,63223.0,63220.0,0.079092]
[1727285567772,0.001,63222.0,63221.0,0.079091]
[1727285568378,0.04386187,63222.0,63221.0,0.079091]
[1727285568673,0.06950676,63222.0,63221.0,0.079091]
[1727285570081,0.06850676,63222.0,63221.0,0.079091]
[1727285571378,0.06856861,63222.0,63214.0,0.18]
[1727285571583,0.09331829,63215.0,63214.0,0.18]
[1727285571884,0.09331829,63215.0,63214.0,0.2591]
[1727285572400,0.02564487,63215.0,63214.0,0.2591]
[1727285572572,0.003,63222.0,63220.0,0.079092]
[1727285572773,0.003,63222.0,63221.0,0.259091]
[1727285572981,0.003,63222.0,63221.0,0.42969012]
[1727285573183,0.3608,63225.0,63224.0,0.079087]
[1727285573386,0.04250179,63225.0,63224.0,0.079087]
[1727285574084,0.10894129,63232.0,63231.0,0.079079]
[1727285574289,0.22534249,63235.0,63232.0,0.079077]
[1727285574479,0.21661035,63234.0,63233.0,0.079076]
[1727285574681,0.09226786,63234.0,63233.0,0.079076]
[1727285575380,0.24809556,63235.0,63233.0,0.079076]
[1727285575381,0.12375307,63235.0,63233.0,0.079076]
[1727285575573,0.12375307,63235.0,63234.0,0.079075]
[1727285575886,1.31694,63235.0,63231.0,0.001]
[1727285576187,0.079087,63225.0,63214.0,0.04733848]
[1727285576388,0.079094,63219.0,63211.0,0.40813848]
[1727285576580,0.0344,63218.0,63211.0,0.3608]
[1727285576775,0.3608,63214.0,63209.0,0.0332]
[1727285578079,0.3608,63214.0,63213.0,0.18]
[1727285578677,0.3618,63214.0,63213.0,0.18]
[1727285580683,0.3648,63214.0,63213.0,0.18]
[1727285583302,0.3648,63214.0,63213.0,0.24314827]
[1727285583988,0.3648,63214.0,63213.0,0.18]
[1727285586190,0.004,63214.0,63213.0,0.259101]
[1727285586985,0.02691566,63223.0,63222.0,0.07909]
[1727285586986,0.0037,63223.0,63222.0,0.07909]
[1727285587190,0.079077,63232.0,63226.0,0.079085]
[1727285587489,0.06227402,63239.0,63231.0,0.079077]
[1727285587689,0.0318,63240.0,63232.0,0.18]
[1727285587890,0.0318,63240.0,63232.0,0.22735815]
[1727285588597,0.07907,63238.0,63232.0,0.22735815]
[1727285588894,0.18,63233.0,63230.0,0.04735815]
[1727285589098,0.259076,63233.0,63232.0,0.001]
[1727285589807,0.259076,63233.0,63222.0,0.3618]
[1727285589808,0.079123,63196.0,63183.0,0.07249953]
[1727285589987,0.66618335,63184.0,63179.0,0.079143]
[1727285590297,0.12434249,63182.0,63181.0,0.35974958]
[1727285590498,0.14404277,63182.0,63181.0,0.17974958]
[1727285590698,0.14404277,63182.0,63177.0,0.35974958]
[1727285590996,0.3608,63178.0,63177.0,0.18]
[1727285591195,0.44123885,63178.0,63177.0,0.18]
[1727285591401,0.44123885,63178.0,63177.0,0.36360244]
[1727285591996,0.44123885,63178.0,63177.0,0.83844244]
[1727285592201,0.44123885,63178.0,63177.0,0.84544244]
[1727285592704,0.4414093,63178.0,63177.0,0.85244244]
[1727285593307,0.4414093,63178.0,63177.0,0.37760244]
[1727285593498,0.38745834,63178.0,63177.0,0.37760244]
[1727285594301,0.38845834,63178.0,63177.0,0.37160244]
[1727285595098,0.02765834,63178.0,63177.0,0.37160244]
[1727285595291,0.38845834,63178.0,63177.0,0.37160244]
[1727285596394,0.48154698,63178.0,63177.0,0.37160244]
[1727285597296,0.48154698,63178.0,63177.0,0.92558844]
[1727285597609,0.38845834,63178.0,63177.0,0.92558844]
[1727285598101,0.38845834,63178.0,63177.0,0.45074844]
[1727285598612,0.3628,63178.0,63177.0,0.45074844]
[1727285599210,0.0043,63199.0,63177.0,1.88638844]
[1727285599211,0.3608,63196.0,63177.0,1.88638844]
[1727285599396,0.3608,63196.0,63195.0,0.18]
[1727285599702,0.5408,63196.0,63182.0,0.00237347]
[1727285599900,0.3608,63186.0,63182.0,0.00237347]
[1727285600097,0.3608,63186.0,63183.0,0.18]
[1727285602003,0.3608,63186.0,63183.0,0.181]
[1727285602206,0.3608,63186.0,63183.0,0.182]
[1727285603714,0.3608,63186.0,63183.0,0.002]
[1727285603909,0.259137,63184.0,63183.0,0.002]
[1727285604714,0.079137,63184.0,63183.0,0.002]
[1727285605302,0.10215554,63184.0,63183.0,0.002]
[1727285605709,0.10215554,63184.0,63183.0,0.001]
[1727285605898,0.10215554,63184.0,63183.0,0.002]
[1727285606099,0.033,63185.0,63183.0,0.002]
[1727285606504,0.079137,63184.0,63183.0,0.002]
[1727285608210,0.079137,63184.0,63183.0,0.001]
[1727285608414,0.079137,63184.0,63183.0,0.002]
[1727285614126,0.033,63185.0,63183.0,0.002]
[1727285615314,0.112137,63185.0,63183.0,0.002]
[1727285617022,0.079137,63184.0,63183.0,0.002]
[1727285619824,0.141643,63184.0,63183.0,0.002]
[1727285620214,0.079137,63184.0,63183.0,0.002]
[1727285624024,0.0625347,63184.0,63183.0,0.002]
[1727285624228,0.4233347,63186.0,63183.0,0.0677]
[1727285624528,0.4233347,63186.0,63185.0,0.18]
[1727285624529,0.3608,63186.0,63185.0,0.18]
[1727285625228,0.0625347,63189.0,63185.0,0.39244768]
[1727285625522,0.07757577,63193.0,63185.0,0.39244768]
[1727285625523,0.079125,63194.0,63190.0,0.07913]
[1727285625726,0.0625347,63196.0,63192.0,0.18]
[1727285626030,0.0625347,63195.0,63192.0,0.18]
[1727285626823,0.1416587,63195.0,63192.0,0.18]
[1727285627126,0.079126,63193.0,63192.0,0.001]
[1727285628115,0.0785347,63195.0,63192.0,0.182]
[1727285628428,0.016,63195.0,63193.0,0.079126]
[1727285628624,0.007,63195.0,63193.0,0.079126]
[1727285628829,0.3608,63197.0,63194.0,0.16695946]
[1727285629120,0.3608,63197.0,63196.0,0.18]
[1727285629519,0.4233347,63205.0,63196.0,0.18]
[1727285629711,0.0625347,63206.0,63205.0,0.079111]
[1727285629912,0.079105,63211.0,63205.0,0.259111]
[1727285630524,0.079105,63210.0,63202.0,0.291014]
[1727285630725,0.3608,63212.0,63207.0,0.18]
[1727285631026,0.36276,63219.0,63211.0,0.18]
[1727285631027,0.079099,63215.0,63211.0,0.18]
[1727285631221,0.0791,63214.0,63211.0,0.18]